[Event "13th Chennai Open 2022"]
[Site "Chennai"]
[Date "2022.06.22"]
[Round "5.3"]
[White "Nitin, S.."]
[Black "Jubin Jimmy"]
[Result "1-0"]
[ECO "B12"]
[WhiteElo "2399"]
[BlackElo "2259"]
[Annotator "TA"]
[PlyCount "125"]
[EventDate "2022.06.19"]
[EventType "swiss"]
[EventCountry "IND"]
[SourceTitle "playchess.com"]
[Source "ChessBase"]
[SourceQuality "1"]
[TimeControl "5400+30"]

{[%evp 9,125,0,0,0,0,0,115,132,137,17,16,10,30,23,93,86,95,91,122,110,116,115,113,126,119,119,100,7,8,9,9,12,26,52,127,120,132,133,132,127,132,129,133,131,120,124,129,124,133,93,100,96,115,110,108,102,93,34,52,53,51,45,120,120,116,38,82,89,150,162,161,152,147,113,86,78,112,0,0,0,0,-5,0,0,0,0,21,0,28,0,0,0,0,0,0,0,68,80,90,0,0,0,510,427,1341,572,562,562,547,289,2555,2504,2087,2011,29986,29987,29984,6502]} 1. e4 {[%emt 0:00:42]} c6 {[%emt 0:00:08]} 2. d4 {[%emt 0:00:11]} d5 {[%emt 0:00:07]} 3. e5 {[%emt 0:00:06]} c5 {[%emt 0:00:44]} 4. dxc5 {[%emt 0:00:10]} e6 {[%emt 0:00:06]} 5. a3 {[%emt 0:00:06]} Bxc5 {[%emt 0:01:11]} 6. Qg4 {[%emt 0:00:14] B12: Caro-Kann: Advance Variation.} Ne7 {[%emt 0:00:22]} 7. Nf3 {[%emt 0:00:15]} Nd7 {[%emt 0:05:37]} (7... Ng6 $11 {remains equal.}) 8. b4 $16 {[%emt 0:09:17] White is better.} ({Much worse is} 8. Qxg7 $6 Ng6 9. Bb5 Bf8 $11) 8... Bb6 {[%emt 0:00:06]} 9. Bd3 {[%emt 0:00:22]} (9. Qxg7 $16 Rf8 10. Qxh7) 9... Bc7 $11 {[%emt 0:12:20]} 10. Bb2 {[%emt 0:04:22]} Ng6 {[%emt 0:01:28] [#]} 11. O-O $146 {[%emt 0:04:55]} ({Predecessor:} 11. h4 Kf8 12. Qg3 f5 13. h5 f4 14. Qg5 Qxg5 15. Nxg5 Bxe5 16. Bxe5 Ngxe5 17. Nxe6+ {1-0 (29) Werner,C (2200)-Leeb,S (2219) Bayern 2020}) 11... h5 {[%emt 0:24:42]} (11... O-O $11 {keeps the balance.}) 12. Qg3 $16 {[%emt 0:02:04]} h4 {[%emt 0:00:08]} 13. Qg4 {[%emt 0:01:24]} Ndxe5 {[%emt 0:01:57]} 14. Nxe5 {[%emt 0:00:29]} Bxe5 {[%emt 0:00:02]} 15. Bxe5 {[%emt 0:01:37][%mdl 64] Remove Defender} Nxe5 {[%emt 0:00:03]} 16. Qxg7 {[%emt 0:00:11]} Rh5 {[%emt 0:00:02][%cal Bh8h5,Bh5f5,Bf5f6][%mdl 32]} 17. Be2 {[%emt 0:10:11]} Rf5 {[%emt 0:02:02]} 18. Nc3 {[%emt 0:01:16]} (18. c4 $16) 18... Qf6 $1 $11 {[%emt 0:10:51]} 19. Qxf6 {[%emt 0:11:26]} Rxf6 {[%emt 0:00:03]} 20. f4 {[%emt 0:00:18][%cal Bf2f4,Bf4f5][%mdl 32]} Ng6 {[%emt 0:09:51]} 21. f5 $36 {[%emt 0:05:52][%mdl 2048] White has the initiative.} Ne7 {[%emt 0:00:55]} (21... Rxf5 $14 22. Rxf5 exf5) 22. Nb5 $1 $16 {[%emt 0:03:26][%cal Bc3b5,Bb5d6,Bd6f7,Bf7e5][%mdl 32] And now Nc7+ would win.} Kd8 {[%emt 0:01:58] Inhibits Nc7.} 23. fxe6 {[%emt 0:00:19]} Rxf1+ {[%emt 0:00:04]} 24. Rxf1 {[%emt 0:00:11]} Bxe6 {[%emt 0:00:25]} 25. Nd6 $1 {[%emt 0:03:27]} Kc7 {[%emt 0:01:22]} 26. Nxf7 {[%emt 0:00:12] White is much more active.} Rg8 {[%emt 0:00:04]} 27. Bd3 {[%emt 0:03:19] Against Nf5} Nc6 {[%emt 0:09:44]} 28. b5 {[%emt 0:04:06]} Ne7 {[%emt 0:00:06]} 29. Re1 {[%emt 0:05:55]} Kd7 {[%emt 0:00:25]} 30. Ne5+ {[%emt 0:00:20]} Kd6 {[%emt 0:00:03]} 31. Nf3 $1 {[%emt 0:01:10]} h3 {[%emt 0:01:45]} 32. g3 {[%emt 0:03:24]} Bf5 {[%emt 0:04:31] [#]} 33. Nd4 {[%emt 0:11:20]} (33. Rxe7 $1 $16 Bxd3 34. Rxb7 Bxc2 35. Rxa7) 33... Bxd3 $14 {[%emt 0:01:53]} 34. cxd3 {[%emt 0:00:02][%mdl 4096] Endgame KRN-KRN} Rg4 {[%emt 0:00:24]} 35. Nc2 {[%emt 0:00:05]} Ra4 {[%emt 0:06:56]} (35... Nf5 $14) 36. Kf2 $16 {[%emt 0:01:10]} Nf5 {[%emt 0:01:24]} 37. Kf3 {[%emt 0:01:43]} ({Better is} 37. Re8 $1 $16) 37... Nh6 {[%emt 0:00:32]} 38. Re2 {[%emt 0:01:53]} Ng4 {[%emt 0:01:17]} (38... b6 $142) 39. d4 {[%emt 0:03:02]} Nf6 {[%emt 0:00:03]} 40. Kf4 {[%emt 0:01:23]} Ne4 {[%emt 0:00:21] [#]} 41. g4 $1 {[%emt 0:04:57]} Nc3 {[%emt 0:00:23][%csl LRb5,LRe2]} 42. Re3 {[%emt 0:02:37]} Rc4 {[%emt 0:01:59]} 43. Kf5 {[%emt 0:01:57]} ({Resist} 43. b6 axb6 44. g5 Ne4 $14) (43. g5 $16) 43... Nxb5 $11 {[%emt 0:00:26][%mdl 64] Discovered Attack} 44. Nb4 {[%emt 0:00:30]} Nxd4+ {[%emt 0:00:50]} 45. Kf6 {[%emt 0:00:02]} Rc1 {[%emt 0:01:27] aiming for ...Rf1+.} 46. Rxh3 {[%emt 0:00:48]} Rf1+ {[%emt 0:00:10]} 47. Kg6 {[%emt 0:00:21]} Rg1 {[%emt 0:00:52]} 48. Rh6 {[%emt 0:00:31]} Kc5 {[%emt 0:00:29]} 49. g5 {[%emt 0:00:24]} Nf3 {[%emt 0:00:29] White must now prevent ...a5.} 50. h4 {[%emt 0:00:17]} Rh1 {[%emt 0:00:42]} 51. h5 {[%emt 0:00:29]} Rg1 {[%emt 0:00:05]} 52. Kf5 {[%emt 0:00:03]} Nh4+ {[%emt 0:01:18]} (52... Nxg5 $2 53. Rg6 Rg3 54. Rxg5 $18) (52... Rxg5+ $2 53. Kf4 $18) (52... a5 $11) 53. Kf4 $14 {[%emt 0:00:52] Threatens to win with Rh8.} a5 {[%emt 0:00:03] [#]} 54. Nd3+ {[%emt 0:00:44]} ({White should play} 54. Nc2 $1 $16) 54... Kd4 $11 {[%emt 0:00:04]} 55. Nf2 {[%emt 0:00:03]} Rf1 $2 {[%emt 0:00:25][%mdl 8192]} (55... Ng2+ $11 56. Kg4 Ne3+ 57. Kf4 Ng2+ 58. Kg4 Ne3+ 59. Kf4 Ng2+) 56. Kg4 $18 {[%emt 0:01:16] Strongly threatening Rf6.} Ng2 {[%emt 0:00:04]} (56... Rxf2 $142 57. Kxh4 Ke5) 57. Kg3 {[%emt 0:00:15]} (57. Rf6 $142 Ne3+ 58. Kh4) 57... Ne3 {[%emt 0:00:18]} 58. Rf6 {[%emt 0:00:02] Hoping for h6.} Rg1+ {[%emt 0:00:49]} 59. Kh4 {[%emt 0:01:05]} Ke5 $2 {[%emt 0:00:20]} (59... Ng2+ 60. Kh3 Ne3) 60. h6 {[%emt 0:00:24][%cal Bh5h6,Bh6h7][%mdl 32] h7 is the strong threat.} Ng2+ {[%emt 0:02:05]} 61. Kh5 {[%emt 0:00:54] h7 would kill now.} Ne1 {[%emt 0:00:40]} 62. h7 {[%emt 0:00:27]} Rg2 {[%emt 0:00:02]} 63. Ng4+ {[%emt 0:00:10] Weighted Error Value: White=0.25 (precise) /Black=0.41} (63. Kg6 $142 Rh2 64. Ng4+ Kd4 65. Nxh2 Nc2 66. h8=Q Kd3 67. Rf3+ Ne3 68. Qe5) 1-0

[Event "13th Chennai Open 2022"]
[Site "Chennai"]
[Date "2022.06.22"]
[Round "5.4"]
[White "Baghdasaryan, Vahe"]
[Black "Srihari L R"]
[Result "1-0"]
[ECO "B12"]
[WhiteElo "2267"]
[BlackElo "2404"]
[Annotator "TA"]
[PlyCount "115"]
[EventDate "2022.06.19"]
[EventType "swiss"]
[EventCountry "IND"]
[SourceTitle "playchess.com"]
[Source "ChessBase"]
[SourceQuality "1"]
[TimeControl "5400+30"]

{[%evp 14,115,10,0,0,0,0,-46,-31,-39,-50,-41,-54,-50,-52,-32,87,84,158,168,155,164,153,158,180,122,100,99,99,0,0,0,0,0,0,0,0,0,0,0,7,0,8,6,41,47,41,32,66,66,71,71,191,190,254,264,264,258,254,237,220,108,128,121,198,185,522,511,521,528,423,8,8,8,8,8,8,8,8,8,22,8,69,82,541,523,1132,1126,29983,29984,29984,29985,29985,29986,29986,29983,29987,29988,29988,29989,29989,29988,29996,29997]} 1. e4 {[%emt 0:03:01]} c6 {[%emt 0:00:23]} 2. d4 {[%emt 0:00:10]} d5 {[%emt 0:00:06]} 3. e5 {[%emt 0:00:19]} Bf5 {[%emt 0:00:08]} 4. h4 {[%emt 0:00:06]} h5 {[%emt 0:00:07]} 5. c4 {[%emt 0:00:05]} e6 {[%emt 0:00:20]} 6. Nc3 {[%emt 0:00:06]} dxc4 {[%emt 0:00:53]} 7. Bxc4 {[%emt 0:00:51]} Nd7 {[%emt 0:00:05]} 8. Nge2 {[%emt 0:00:35]} Be7 {[%emt 0:09:46] B12: Caro-Kann: Advance Variation.} 9. Ng3 {[%emt 0:04:48]} Bg6 {[%emt 0:00:46]} 10. Nce4 {[%emt 0:08:06]} (10. Nge2 $11) 10... Nh6 $15 {[%emt 0:04:19][%cal Bg8h6,Bh6f5,Bf5d4][%mdl 32] Black is slightly better.} 11. Bg5 {[%emt 0:09:22]} Bxe4 {[%emt 0:06:44]} 12. Nxe4 {[%emt 0:00:11]} Nf5 {[%emt 0:00:07] [#]} 13. Qb3 $146 {[%emt 0:23:32][%cal Oc4e6]} ({Predecessor:} 13. O-O Nb6 14. Bd3 Qxd4 15. Qf3 Qxe5 16. Bxe7 Nxe7 17. Rfe1 Nbd5 18. Ng5 Qf4 19. Qe2 Qxh4 20. Nxf7 Kxf7 21. Qxe6+ {1-0 (28) Kostolansky,S (2393)-Cajka,T (2136) Bratislava 2021}) 13... Nxd4 {[%emt 0:40:38]} 14. Qc3 {[%emt 0:01:27]} Bb4 {[%emt 0:10:58]} 15. Bxd8 $16 {[%emt 0:15:50]} ({Much worse is} 15. Nd6+ Bxd6 16. exd6 (16. Bxd8 Bb4 $15) 16... Qb6 $15) 15... Rxd8 {[%emt 0:00:28]} (15... Bxc3+ $142 16. bxc3 Nc2+ 17. Kd1 Nxa1) 16. Nd6+ {[%emt 0:00:03]} Kf8 {[%emt 0:03:51] [#]} 17. O-O-O $1 {[%emt 0:00:16]} Bxc3 {[%emt 0:00:09]} 18. bxc3 {[%emt 0:00:03]} Nf5 {[%emt 0:07:17]} 19. Nxf5 {[%emt 0:03:50]} (19. Nxb7 $18 Ke7 20. Nxd8 Rxd8 21. Rde1) 19... exf5 {[%emt 0:00:02]} 20. e6 {[%emt 0:00:05] White is more active.} fxe6 {[%emt 0:00:05] And now ...Ke7 would win.} 21. Bxe6 {[%emt 0:00:04]} (21. Rhe1 $1 $16) 21... Ke7 $36 {[%emt 0:00:16][%mdl 2048] Black is pushing.} 22. Rhe1 {[%emt 0:00:05]} Nc5 {[%emt 0:00:36]} 23. Bxf5+ {[%emt 0:05:07]} Kf6 {[%emt 0:00:13]} 24. Bc2 {[%emt 0:00:18]} Rxd1+ {[%emt 0:07:03]} 25. Rxd1 {[%emt 0:00:16][%mdl 4096] Endgame KRB-KRN} Re8 {[%emt 0:00:06]} 26. Rd4 {[%emt 0:06:30]} g5 {[%emt 0:04:39] Prevents Rf4+.} 27. Kd1 {[%emt 0:05:26]} Rf8 {[%emt 0:02:02]} 28. g3 {[%emt 0:00:31]} Re8 {[%emt 0:00:34]} 29. hxg5+ {[%emt 0:01:41]} Kxg5 {[%emt 0:00:01]} 30. Rh4 {[%emt 0:00:07]} Rd8+ {[%emt 0:01:22]} 31. Ke2 {[%emt 0:00:13]} Re8+ {[%emt 0:00:11]} 32. Kf1 {[%emt 0:00:08]} Nd7 {[%emt 0:01:39]} (32... b6 $16) 33. f4+ $1 $18 {[%emt 0:00:10]} Kh6 {[%emt 0:00:07]} (33... Kf6 $142) 34. g4 {[%emt 0:00:05]} Kg7 {[%emt 0:00:33]} 35. Rxh5 {[%emt 0:00:23] aiming for Rh7+.} Nf6 {[%emt 0:00:03] Inhibits Rh7+.} 36. Rg5+ {[%emt 0:00:06]} Kf8 {[%emt 0:00:05]} 37. Rf5 {[%emt 0:00:08]} (37. Kf2 $18 {and White stays clearly on top.}) 37... Kg7 $16 {[%emt 0:00:07]} 38. Bb3 {[%emt 0:01:12] Black must now prevent g5.} Re7 {[%emt 0:00:37] [#]} (38... Re3 $16 {is a better defense.}) 39. Rg5+ $1 $18 {[%emt 0:00:33]} Kh8 $2 {[%emt 0:00:05]} (39... Kh6 {is tougher.} 40. Kg2 Re3) 40. Rg6 {[%emt 0:00:52]} Ne4 {[%emt 0:01:35]} 41. f5 {[%emt 0:01:08]} Kh7 {[%emt 0:00:34]} 42. g5 $2 {[%emt 0:00:56]} (42. Bc2 $18) 42... Ng3+ $11 {[%emt 0:00:07]} 43. Kf2 {[%emt 0:00:22] White wants to mate with Rh6+.} Nxf5 {[%emt 0:00:08]} 44. Rf6 {[%emt 0:00:09]} Ne3 {[%emt 0:00:35] Inhibits Bc2+. Strongly threatening ...Ng4+.} 45. Kf3 {[%emt 0:00:36] Against Ng4} Kg7 {[%emt 0:00:26]} 46. Kf4 {[%emt 0:04:58]} a5 {[%emt 0:01:00]} 47. Be6 {[%emt 0:02:52]} Nd1 {[%emt 0:00:56]} ({Black should try} 47... Nd5+ $1 $11 48. Bxd5 cxd5) 48. c4 $14 {[%emt 0:00:11]} Nc3 $2 {[%emt 0:00:28][%mdl 8192] [#] Black cannot hold the game after this.} (48... Nb2 $16 {is more resistant.}) 49. Kf5 $1 $18 {[%emt 0:00:34]} Ne2 {[%emt 0:00:10]} 50. Rg6+ {[%emt 0:00:27]} Kh8 {[%emt 0:00:49]} 51. Rg8+ {[%emt 0:00:11] White mates.} Kh7 {[%emt 0:00:27]} 52. g6+ {[%emt 0:00:06]} Kh6 {[%emt 0:00:32]} 53. Rh8+ {[%emt 0:00:06]} Kg7 {[%emt 0:00:29]} 54. Rh7+ {[%emt 0:00:05]} Kf8 {[%emt 0:00:01]} 55. Kf6 {[%emt 0:02:55][%cal Rh7h8]} Rxe6+ {[%emt 0:02:12]} 56. Kxe6 {[%emt 0:00:08]} Nf4+ {[%emt 0:00:30]} 57. Kf5 {[%emt 0:00:21]} Nd3 {[%emt 0:00:00]} 58. Kf6 {[%emt 0:00:06] Weighted Error Value: White=0.21 (precise) /Black=0.58} 1-0

[Event "13th Chennai Open 2022"]
[Site "Chennai"]
[Date "2022.06.22"]
[Round "5.5"]
[White "Fedorov, Alexei"]
[Black "Ravichandran, Siddharth"]
[Result "1-0"]
[ECO "B28"]
[WhiteElo "2529"]
[BlackElo "2352"]
[Annotator "TA"]
[PlyCount "77"]
[EventDate "2022.06.19"]
[EventType "swiss"]
[EventCountry "IND"]
[SourceTitle "playchess.com"]
[Source "ChessBase"]
[SourceQuality "1"]
[TimeControl "5400+30"]

{[%evp 10,77,36,30,51,43,50,33,50,38,36,44,44,33,29,22,37,39,38,22,42,26,41,-8,-4,-8,2,11,113,106,112,104,102,56,83,88,172,187,189,170,266,251,252,196,457,445,627,586,550,578,722,727,681,699,710,667,911,895,840,785,1093,1000,29982,29983,29982,29983,29982,29983,29982,4652]} 1. e4 {[%emt 0:00:04]} c5 {[%emt 0:00:10]} 2. Nf3 {[%emt 0:00:10][%cal Bg1f3,Bf3d4,Bd4f5,Bf5e3][%mdl 32]} a6 {[%emt 0:00:21]} 3. c4 {[%emt 0:00:13]} Nc6 {[%emt 0:00:12]} 4. d4 {[%emt 0:00:30]} cxd4 {[%emt 0:00:09]} 5. Nxd4 {[%emt 0:00:05]} e5 {[%emt 0:04:12]} 6. Nf5 {[%emt 0:00:36]} d6 {[%emt 0:00:13] B28: Sicilian: 2 Nf3 a6 (O'Kelly Variation).} 7. Ne3 {[%emt 0:01:02]} g6 {[%emt 0:01:00]} 8. Nc3 {[%emt 0:00:21]} Bg7 {[%emt 0:02:35] White is slightly better.} 9. Bd3 {[%emt 0:09:39]} Nge7 {[%emt 0:00:29]} 10. h4 {[%emt 0:01:32]} h5 {[%emt 0:03:21]} 11. Ned5 {[%emt 0:00:58]} Nxd5 {[%emt 0:02:08]} 12. Nxd5 {[%emt 0:00:19] [#]} Be6 $146 {[%emt 0:03:51]} ({Predecessor:} 12... O-O 13. Bg5 f6 14. Be3 Be6 15. O-O Rc8 16. g3 Qe8 17. Be2 Kh7 18. Bb6 Qf7 {½-½ (53) Kotronias,V (2611)-Krush,I (2479) Gausdal 2008}) 13. Bg5 {[%emt 0:03:38]} Qa5+ {[%emt 0:01:56]} 14. Kf1 {[%emt 0:04:54]} Bxd5 {[%emt 0:01:19]} 15. exd5 {[%emt 0:00:32]} Nd4 {[%emt 0:13:18]} 16. g4 {[%emt 0:16:12]} (16. Be3 $14 {feels stronger.}) 16... Qc7 $11 {[%emt 0:06:57]} 17. Be3 {[%emt 0:19:33]} O-O-O {[%emt 0:34:50]} 18. g5 {[%emt 0:03:46]} f5 {[%emt 0:05:38]} (18... Rhe8 $11) 19. Bxd4 $16 {[%emt 0:05:49]} exd4 {[%emt 0:00:05]} 20. b4 {[%emt 0:00:26]} Rhe8 {[%emt 0:05:05]} 21. Qf3 {[%emt 0:04:19] Prevents Re4.} ({White should play} 21. Rb1 $16) 21... Re5 $1 $14 {[%emt 0:05:13]} 22. Kg2 {[%emt 0:00:25] Black is now going downhill.} Qf7 {[%emt 0:04:06] [#]} (22... Rde8 $16 {is a better defense.}) 23. Rab1 $1 $18 {[%emt 0:04:52]} Kd7 {[%emt 0:00:50]} 24. Rhc1 {[%emt 0:07:52]} Ke7 {[%emt 0:00:44]} (24... Rc8 $142 25. a4 Rc7) 25. c5 {[%emt 0:00:57][%cal Bc4c5,Bc5c6][%mdl 32]} ({Weaker is} 25. Qf4 Kf8 $14) 25... Kf8 {[%emt 0:01:38]} 26. c6 {[%emt 0:00:42]} b5 $2 {[%emt 0:00:37]} (26... Kg8 27. cxb7 Qxb7) 27. a4 {[%emt 0:00:41]} Qc7 {[%emt 0:00:58]} (27... Rxd5 $142 28. axb5 axb5) 28. axb5 {[%emt 0:00:42]} axb5 {[%emt 0:00:01]} 29. Ra1 {[%emt 0:00:34]} Kg8 {[%emt 0:00:40]} 30. Ra5 {[%emt 0:00:16]} Rb8 {[%emt 0:00:38]} 31. Rca1 {[%emt 0:00:43][%cal Bc1a1,Ba1a5,Ba5a8][%mdl 32]} Re7 {[%emt 0:00:16]} 32. Ra8 {[%emt 0:03:56]} Kh7 {[%emt 0:00:09]} 33. R1a5 {[%emt 0:00:56]} Rxa8 {[%emt 0:01:00]} 34. Rxa8 {[%emt 0:00:06][%cal Of3h5] White threatens Qxh5+! and mate.} Re5 {[%emt 0:00:23]} 35. Ra5 {[%emt 0:00:23]} Re1 {[%emt 0:00:29] [#]} 36. Bxf5 $1 {[%emt 0:01:36][%mdl 512] White mates.} Qf7 {[%emt 0:00:07]} 37. Qxh5+ {[%emt 0:01:30]} Kg8 {[%emt 0:00:02]} 38. Ra8+ {[%emt 0:00:16]} Bf8 {[%emt 0:00:07]} 39. Qxg6+ {[%emt 0:00:16] Weighted Error Value: White=0.07 (flawless) /Black=0.52} (39. Bxg6 $142 Qxd5+ 40. f3 Re2+ 41. Kf1 Re7 {[#]} 42. Rxf8+ $1 {[%mdl 512]} Kxf8 43. Qh8+ Qg8 44. Qf6+ Qf7 45. Bxf7) 1-0

[Event "13th Chennai Open 2022"]
[Site "Chennai"]
[Date "2022.06.22"]
[Round "5.6"]
[White "Aaryan Varshney"]
[Black "Tran, Tuan Minh"]
[Result "0-1"]
[ECO "E15"]
[WhiteElo "2308"]
[BlackElo "2533"]
[Annotator "TA"]
[PlyCount "78"]
[EventDate "2022.06.19"]
[EventType "swiss"]
[EventCountry "IND"]
[SourceTitle "playchess.com"]
[Source "ChessBase"]
[SourceQuality "1"]
[TimeControl "5400+30"]

{[%evp 22,78,19,8,17,5,27,6,17,0,0,0,21,16,41,24,41,0,23,-29,-20,-19,-11,-86,-85,-69,-66,-99,-96,-124,-83,-82,-18,-106,-74,-100,-91,-137,-98,-119,-106,-114,-117,-590,-597,-600,-609,-541,-529,-1186,-1178,-2509,-2424,-29996,-29996,-29996,-29997,-29998,-29999]} 1. d4 {[%emt 0:00:03]} Nf6 {[%emt 0:00:08]} 2. c4 {[%emt 0:00:08]} e6 {[%emt 0:00:04]} 3. Nf3 {[%emt 0:00:04]} b6 {[%emt 0:00:10]} 4. g3 {[%emt 0:00:07]} Ba6 {[%emt 0:00:05]} 5. b3 {[%emt 0:00:06]} Bb4+ {[%emt 0:00:05]} 6. Bd2 {[%emt 0:00:06]} Be7 {[%emt 0:00:04]} 7. Bg2 {[%emt 0:00:08]} O-O {[%emt 0:00:18]} 8. O-O {[%emt 0:00:07]} Bb7 {[%emt 0:00:10]} 9. Nc3 {[%emt 0:00:49]} d5 {[%emt 0:00:08]} 10. cxd5 {[%emt 0:00:10]} exd5 {[%emt 0:00:08]} 11. Qc2 {[%emt 0:00:19]} Na6 {[%emt 0:00:17]} 12. Rfd1 {[%emt 0:00:32]} Re8 {[%emt 0:00:49] E15: Queen's Indian: 4 g3 sidelines, 4 g3 Ba6 and 4 g3 Bb7 early deviations.} 13. Bf4 {[%emt 0:03:14]} Ne4 {[%emt 0:09:27] [#]} 14. Ne5 $146 {[%emt 0:05:25][%cal Rc3e4]} ({Predecessor:} 14. a3 Nxc3 15. Qxc3 c5 16. Qd3 Bd6 17. e3 Bxf4 18. exf4 Qd7 19. Re1 f6 20. Bf1 {½-½ (44) Alvebring,M-Krueger,H LSS email 2007}) 14... Nb4 {[%emt 0:03:24] The position is equal.} 15. Qb2 {[%emt 0:02:01]} f6 {[%emt 0:01:06]} 16. Nf3 {[%emt 0:03:04]} g5 {[%emt 0:10:39]} 17. Be3 {[%emt 0:07:02]} a5 {[%emt 0:01:05]} 18. a3 {[%emt 0:02:01]} Na6 {[%emt 0:04:53]} 19. Rac1 {[%emt 0:13:46]} Bd6 {[%emt 0:01:30]} 20. Nb5 {[%emt 0:15:18]} (20. Nxe4 $142 Rxe4 21. Rc2) 20... Bf8 $11 {[%emt 0:00:19]} 21. Bh3 {[%emt 0:06:32]} Qe7 {[%emt 0:01:41]} (21... c6 $5 22. Nc3 Nxc3 23. Rxc3 Nc7 $11) 22. a4 {[%emt 0:01:13]} (22. Bf5 $11) 22... c6 $17 {[%emt 0:01:38]} 23. Nc3 {[%emt 0:00:23]} Nd6 {[%emt 0:00:06]} 24. Re1 {[%emt 0:07:27]} Qg7 {[%emt 0:02:23] ...g4 is the strong threat.} 25. Bg2 {[%emt 0:06:25]} Nb4 {[%emt 0:01:48]} 26. Bd2 {[%emt 0:01:41]} Ne4 {[%emt 0:03:30]} ({Black should play} 26... Qg6 $17) 27. Rcd1 {[%emt 0:04:16]} (27. Nxe4 $11 dxe4 28. Bxb4 Bxb4 29. Nd2) 27... Ba6 {[%emt 0:02:48]} 28. Bf1 {[%emt 0:01:05]} Re6 {[%emt 0:01:52]} 29. Bc1 {[%emt 0:05:09]} ({Better is} 29. Nxe4 dxe4 30. d5 cxd5 31. Nd4) 29... Rae8 {[%emt 0:01:28]} 30. e3 {[%emt 0:01:00]} Bxf1 {[%emt 0:00:39] Black is much more active.} 31. Rxf1 {[%emt 0:00:33]} Qg6 {[%emt 0:00:49]} 32. Kg2 $2 {[%emt 0:01:57][%mdl 8192] [#] Loses the game.} (32. Ne1 $17 {is more resistant.}) 32... Nxc3 $1 $19 {[%emt 0:00:37]} 33. Qxc3 {[%emt 0:01:31]} Qe4 {[%emt 0:00:06] Threatens to win with ...g4.} 34. h3 {[%emt 0:01:28]} f5 {[%emt 0:01:08] White must now prevent ...g4.} 35. Kg1 {[%emt 0:01:34]} Qxf3 {[%emt 0:00:09]} 36. Rde1 {[%emt 0:00:46]} Rh6 {[%emt 0:00:10]} 37. Kh2 {[%emt 0:00:51] [#]} Rxh3+ $3 {[%emt 0:00:09][%mdl 512] Black mates.} 38. Kxh3 {[%emt 0:00:03]} Re6 {[%emt 0:00:03][%cal Re6h6]} 39. Kh2 {[%emt 0:00:03]} Rh6+ {[%emt 0:00:03] Weighted Error Value: White=0.89/Black=0.12 (very precise)} 0-1

[Event "13th Chennai Open 2022"]
[Site "Chennai"]
[Date "2022.06.22"]
[Round "5.7"]
[White "Murali Krishnan B T"]
[Black "Deepan Chakkravarthy J."]
[Result "1/2-1/2"]
[ECO "D76"]
[WhiteElo "2208"]
[BlackElo "2478"]
[Annotator "TA"]
[PlyCount "74"]
[EventDate "2022.06.19"]
[EventType "swiss"]
[EventCountry "IND"]
[SourceTitle "playchess.com"]
[Source "ChessBase"]
[SourceQuality "1"]
[TimeControl "5400+30"]

{[%evp 18,74,26,8,18,-2,0,-7,0,-14,0,0,0,0,0,0,0,0,0,0,0,0,0,0,14,0,0,0,5,8,7,0,0,0,0,0,0,0,0,0,0,0,0,0,0,0,0,0,0,0,0,0,0,0,0,0,0,0,0]} 1. d4 {[%emt 0:00:08]} Nf6 {[%emt 0:03:22]} 2. Nf3 {[%emt 0:01:17]} g6 {[%emt 0:00:13]} 3. c4 {[%emt 0:00:14]} Bg7 {[%emt 0:00:37]} 4. g3 {[%emt 0:00:15]} O-O {[%emt 0:01:53]} 5. Bg2 {[%emt 0:00:04]} d5 {[%emt 0:06:20]} 6. cxd5 {[%emt 0:05:34]} Nxd5 {[%emt 0:00:02]} 7. O-O {[%emt 0:00:13]} Nc6 {[%emt 0:00:02]} 8. Nc3 {[%emt 0:05:30]} Nb6 {[%emt 0:00:06]} 9. e3 {[%emt 0:00:51]} Re8 {[%emt 0:00:06]} 10. h3 {[%emt 0:08:42]} a5 {[%emt 0:01:49] The position is equal. D76: Fianchetto Grünfeld: Main Line with 7...Nb6.} 11. Na4 {[%emt 0:09:10]} (11. d5 $5 {[%cal Rd5c6]} Ne5 12. Nd4 $11) 11... Nxa4 {[%emt 0:10:48]} 12. Qxa4 {[%emt 0:00:18]} e5 {[%emt 0:20:20] [#]} 13. dxe5 $146 {[%emt 0:13:27]} ({Predecessor:} 13. Rd1 exd4 14. Nxd4 Nxd4 15. exd4 c6 16. d5 c5 17. Be3 b6 18. Qc2 Bf5 19. Qd2 {0-1 (50) Kuecher,W (2101)-Knoll,H (2341) St Johann im Pongau 2016}) 13... Nxe5 {[%emt 0:00:20]} 14. Nxe5 {[%emt 0:00:10]} Bxe5 {[%emt 0:00:28]} 15. Rd1 {[%emt 0:00:06]} Qe7 {[%emt 0:00:05]} 16. Bd2 {[%emt 0:09:04]} Bxb2 {[%emt 0:10:48] [#] White must now prevent ...Bd7.} 17. Rab1 {[%emt 0:00:17]} Be5 {[%emt 0:00:06]} ({Much less strong is} 17... Bd7 18. Qc2 Be5 19. Rxb7 $14) 18. Bxb7 {[%emt 0:00:17]} Bxb7 {[%emt 0:00:04]} 19. Rxb7 {[%emt 0:00:07]} Qe6 {[%emt 0:00:10]} 20. Kh2 {[%emt 0:09:05]} Qd5 {[%emt 0:02:01]} 21. Rbb1 {[%emt 0:05:58]} Qf3 {[%emt 0:00:06]} 22. Be1 {[%emt 0:00:30]} h5 {[%emt 0:00:49][%cal Oe5g3]} 23. Kg1 {[%emt 0:01:41]} Bd6 {[%emt 0:10:21]} 24. Qc4 {[%emt 0:05:04]} Rab8 {[%emt 0:16:57]} 25. h4 {[%emt 0:07:11]} Rb2 {[%emt 0:10:22]} 26. Rxb2 {[%emt 0:01:26]} Qxd1 {[%emt 0:00:02]} 27. Qe2 {[%emt 0:00:08]} Qxe2 {[%emt 0:03:22]} 28. Rxe2 $11 {[%emt 0:00:06][%mdl 4096] Endgame KRB-KRB} a4 {[%emt 0:00:03]} 29. Rb2 {[%emt 0:02:29][%cal Be2b2,Bb2b5,Bb5a5,Ba5a6][%mdl 32]} f5 {[%emt 0:00:36]} 30. Kf1 {[%emt 0:00:56]} Kf7 {[%emt 0:00:01]} 31. Ke2 {[%emt 0:00:15]} Ke6 {[%emt 0:00:06]} 32. Rb5 {[%emt 0:00:53]} Kd7 {[%emt 0:00:59]} 33. Kd3 {[%emt 0:01:40]} Kc6 {[%emt 0:00:12]} 34. Ra5 {[%emt 0:00:04]} a3 {[%emt 0:00:08]} 35. Ra6+ {[%emt 0:00:10]} Kb5 {[%emt 0:01:00]} 36. Ra5+ {[%emt 0:01:36]} Kb6 {[%emt 0:00:02]} 37. Ra4 {[%emt 0:00:15]} Kb5 {[%emt 0:01:55] A balanced but interesting game.  Weighted Error Value: White=0.02 (flawless) /Black=0.01 (flawless)} 1/2-1/2